bitfinex/quotes_ETHUSD_20240604
["timestamp","ask_amount","ask_price","bid_price","bid_amount"]
[1717475310849,3.114,3775.5,3774.9,0.55493908]
[1717475311379,0.06693479,3775.4,3774.7,0.55493908]
[1717475311559,3.114,3775.5,3774.7,1.47545539]
[1717475311759,0.06677125,3775.3,3774.7,1.47545539]
[1717475311962,0.8,3775.1,3774.7,1.47545539]
[1717475312162,0.8,3775.1,3774.6,1.38066855]
[1717475312355,0.06677125,3775.0,3774.5,2.64929]
[1717475312560,0.06677125,3775.0,3774.6,0.92058567]
[1717475313264,0.06677125,3775.0,3774.5,2.64929]
[1717475313982,0.06677125,3775.0,3774.6,0.55]
[1717475317661,0.06632547,3774.9,3774.6,0.55]
[1717475317979,5.01178,3775.2,3774.6,0.55]
[1717475318174,0.06632547,3774.8,3774.6,0.55]
[1717475318399,5.01178,3775.2,3774.6,0.55]
[1717475318574,0.06632547,3774.7,3774.6,0.55]
[1717475318922,2.64861,3775.6,3774.7,2.64918]
[1717475319068,2.64861,3775.6,3775.0,0.8]
[1717475319604,9.6335,3775.7,3775.0,0.8]
[1717475319803,9.6335,3775.7,3774.8,3.1222]
[1717475320119,9.6335,3775.7,3775.0,3.449]
[1717475320407,7.32,3775.7,3775.0,3.449]
[1717475321158,7.32,3775.7,3775.0,2.649]
[1717475322816,0.8,3775.8,3775.0,2.649]
[1717475323564,0.06637044,3775.7,3775.0,2.649]
[1717475327992,5.64835,3776.0,3775.2,3.44883]
[1717475328315,0.06637044,3775.6,3775.2,3.44883]
[1717475328519,1.11073398,3776.3,3775.4,3.44869]
[1717475328520,0.06637044,3775.9,3775.4,3.44869]
[1717475328675,0.06637044,3775.9,3775.6,0.8]
[1717475328871,3.0,3776.3,3775.7,0.55]
[1717475329079,0.06637044,3775.8,3775.7,0.55]
[1717475329276,3.0,3776.3,3775.7,0.55]
[1717475329505,0.06637044,3775.8,3775.7,0.55]
[1717475329702,3.0,3776.3,3775.7,0.55]
[1717475330325,0.06637044,3776.2,3775.7,0.55]
[1717475331014,0.06637044,3776.2,3775.5,0.55]
[1717475339178,1.19921448,3776.2,3775.5,0.55]
[1717475340023,3.44827,3776.1,3775.5,0.55]
[1717475340325,3.44827,3776.1,3775.4,2.64869]
[1717475340485,0.06654217,3776.0,3775.4,2.64869]
[1717475351626,1.13284404,3776.2,3775.4,2.64869]
[1717475351831,0.06649592,3775.9,3775.4,2.64869]
[1717475352033,1.13284404,3776.2,3775.4,2.64869]
[1717475352194,0.06649592,3775.8,3775.4,2.64869]
[1717475352528,3.8,3776.3,3775.4,2.64869]
[1717475352728,0.06649592,3775.7,3775.4,2.64869]
[1717475352945,3.8,3776.3,3775.4,2.64869]
[1717475353114,0.06649592,3775.6,3775.4,2.64869]
[1717475353513,3.8,3776.3,3775.4,2.64869]
[1717475353923,0.06645915,3776.2,3775.4,2.64869]
[1717475360746,5.90305,3776.1,3775.1,3.2094]
[1717475361307,0.06645915,3776.0,3775.1,3.2094]
[1717475361507,1.07448346,3776.0,3775.1,3.2094]
[1717475362336,1.07448346,3776.0,3775.1,2.4094]
[1717475362518,1.07448346,3776.0,3775.1,3.2094]
[1717475362746,1.07448346,3776.0,3775.2,2.64886]
[1717475363523,0.8,3775.3,3774.6,0.55493908]
[1717475363716,0.8,3775.3,3774.4,2.4801]
[1717475363924,0.0667945,3775.2,3774.5,0.92056049]
[1717475364621,0.0667945,3775.2,3774.5,3.56985049]
[1717475364823,0.0667945,3775.2,3774.5,2.64929]
[1717475375437,2.4086,3775.1,3774.5,2.64929]
[1717475375637,0.0663978,3775.0,3774.5,2.64929]
[1717475378245,0.39389758,3775.0,3774.5,2.64929]
[1717475378777,0.32749978,3775.0,3774.5,2.64929]
[1717475378938,0.06619333,3774.9,3774.5,2.64929]
[1717475379580,3.2086,3775.1,3774.5,2.64929]
[1717475379738,0.06619333,3774.8,3774.5,2.64929]
[1717475379938,3.2086,3775.1,3774.5,2.64929]
[1717475380140,0.06619333,3774.7,3774.5,2.64929]
[1717475380392,3.794336,3775.1,3774.5,2.64929]
[1717475380553,0.06619333,3774.6,3774.5,2.64929]
[1717475380748,3.794336,3775.1,3774.5,2.64929]
[1717475380957,0.06619333,3774.6,3774.5,2.64929]
[1717475381144,3.794336,3775.1,3774.5,2.64929]
[1717475381344,0.06619333,3774.6,3774.5,2.64929]
[1717475381980,2.4086,3775.1,3774.5,2.64929]
[1717475382137,0.06619333,3774.6,3774.5,2.64929]
[1717475382335,2.4086,3775.1,3774.5,2.64929]
[1717475382557,0.06619333,3774.6,3774.5,2.64929]
[1717475382776,2.4086,3775.1,3774.5,2.64929]
[1717475382969,0.06619333,3774.6,3774.5,2.64929]
[1717475383179,2.4086,3775.1,3774.5,2.64929]
[1717475383354,0.06619333,3774.6,3774.5,2.64929]
[1717475383549,2.4086,3775.1,3774.5,2.64929]
[1717475384186,0.06619333,3775.0,3774.5,2.64929]
[1717475392919,3.0639,3774.9,3774.2,2.64956]
[1717475393117,3.0639,3774.9,3774.3,0.55]
[1717475393628,0.06612786,3774.8,3774.2,2.64956]
[1717475393777,0.8,3774.7,3773.9,2.64977]
[1717475394118,1.37791679,3774.7,3774.0,0.55]
[1717475394306,0.8,3774.5,3773.9,2.64977]
[1717475394624,0.06612786,3774.4,3773.9,2.64977]
[1717475395293,4.98721,3774.3,3773.5,1.38105673]
[1717475395499,5.78721,3774.3,3773.3,3.20507908]
[1717475395723,5.78721,3774.3,3773.3,3.45014]
[1717475395724,0.06596014,3774.2,3773.3,3.45014]
[1717475396056,0.06596014,3774.2,3773.3,3.98875358]
[1717475398488,0.06596014,3774.2,3773.3,3.18875358]
[1717475398689,0.06596014,3774.2,3773.4,0.8]
[1717475401133,0.06596014,3774.2,3773.3,3.18875358]
[1717475401342,0.06596014,3774.2,3773.4,0.8]
[1717475402526,0.06596014,3774.2,3773.3,3.18875358]
[1717475402824,0.06596014,3774.2,3773.5,2.65002]
[1717475403122,0.06596014,3774.2,3773.7,0.8]
[1717475403325,0.06596014,3774.2,3773.8,0.55]
[1717475405437,0.06596014,3774.2,3773.8,3.19982]
[1717475405618,0.06596014,3774.2,3773.9,0.8]
[1717475405818,0.06596014,3774.2,3774.1,0.8]
[1717475406256,0.06596014,3774.2,3774.1,1.35]
[1717475408127,0.06596014,3774.2,3774.1,2.27061662]
[1717475409259,0.06596014,3774.2,3774.1,4.70979302]
[1717475410455,0.06596014,3774.2,3774.1,7.49679302]
[1717475410612,0.06596014,3774.2,3774.1,8.82829153]
[1717475410817,0.06596014,3774.2,3774.1,10.20927996]
[1717475411219,0.06596014,3774.2,3774.1,10.76438398]
[1717475411631,0.00664517,3774.2,3774.1,10.20927996]
[1717475411834,0.00664517,3774.2,3774.1,11.04174251]
[1717475412033,0.00664517,3774.2,3774.1,10.20927996]
[1717475412251,0.00066949,3774.2,3774.1,13.20927996]
[1717475412572,0.00066949,3774.2,3774.1,15.05026146]
[1717475412755,0.00066949,3774.2,3774.1,16.43754743]
[1717475413451,0.00066949,3774.2,3774.1,15.05026146]
[1717475415345,0.00066949,3774.2,3774.1,16.15978718]
[1717475415716,2.2792,3775.7,3774.6,2.4165]
[1717475415917,2.2792,3775.7,3775.1,0.8]
[1717475416148,0.06080959,3775.6,3775.1,0.8]
[1717475416355,2.2792,3775.7,3775.1,0.8]
[1717475416756,0.06080959,3775.6,3775.2,2.64883]
[1717475416967,0.06080959,3775.6,3775.4,2.64872]
[1717475417174,2.4168,3776.0,3775.4,2.99888942]
[1717475417374,2.4168,3776.0,3775.4,2.64872]
[1717475417528,0.06080959,3775.9,3775.4,2.64872]
[1717475418582,0.06080959,3775.9,3775.5,0.8]
[1717475418864,0.06080959,3775.9,3775.6,2.64858]
[1717475420037,0.06080959,3775.9,3775.7,0.8]
[1717475421533,0.06080959,3775.9,3775.6,2.64858]
[1717475423463,0.38857055,3775.9,3775.2,2.64884]
[1717475423704,2.4949,3775.8,3775.2,2.64884]
[1717475424146,0.06135838,3775.7,3775.2,2.64884]
[1717475447627,2.3046,3775.6,3775.2,2.64884]
[1717475448131,0.06128878,3775.5,3775.2,2.64884]
[1717475448503,0.06128878,3775.5,3774.8,2.64908]
[1717475448705,0.06128878,3775.5,3774.9,0.55]
[1717475449028,0.64272766,3775.5,3774.8,2.64908]
[1717475450789,0.06128878,3775.5,3774.8,2.64908]
[1717475451436,0.06128878,3775.5,3774.8,3.44908]
[1717475453136,0.06128878,3775.5,3775.1,2.64892]
[1717475489905,0.06128878,3775.5,3774.8,0.55474731]
[1717475489906,2.4742,3775.3,3774.8,0.55474731]
[1717475490143,0.06123964,3775.2,3774.8,0.55474731]
[1717475490271,0.86123964,3775.2,3774.8,0.55474731]
[1717475490472,2.53543964,3775.1,3774.8,0.55474731]
[1717475490998,2.53543964,3775.1,3774.5,2.64935]
[1717475494505,2.53543964,3775.1,3774.5,2.35085]
[1717475494679,0.25354396,3775.0,3774.5,2.35085]
[1717475495211,0.06123964,3774.9,3774.5,2.35085]
[1717475496715,2.3067,3775.4,3774.9,2.64902]
[1717475497015,0.06123964,3775.3,3775.0,0.8]
[1717475497389,2.3067,3775.7,3775.0,0.8]
[1717475497718,0.06123964,3775.2,3775.0,0.8]
[1717475497876,2.3067,3775.7,3775.0,0.8]
[1717475498508,0.06106354,3775.6,3775.0,0.8]
[1717475501594,0.06106354,3775.6,3774.9,3.44902]
[1717475501794,0.56268389,3775.6,3774.9,2.64902]
[1717475504426,1.36268389,3775.6,3774.9,2.64902]
[1717475504633,2.3386,3775.5,3774.9,2.64902]
[1717475504801,0.8,3775.4,3774.9,2.64902]
[1717475504995,2.3386,3775.5,3774.9,2.64902]
[1717475505209,0.06106354,3775.3,3774.9,2.64902]
[1717475505537,0.06106354,3775.2,3774.9,2.64902]
[1717475505714,2.3386,3775.5,3774.9,2.64902]
[1717475505906,0.28402204,3775.4,3774.9,2.64902]
[1717475506112,0.34508558,3775.4,3774.9,2.64902]
[1717475508442,0.34508558,3775.4,3775.2,2.64885]
[1717475508443,0.06106354,3775.4,3775.2,2.64885]
[1717475508605,0.06106354,3775.4,3775.3,0.92046569]
[1717475508807,1.1116954,3776.0,3775.3,0.92046569]
[1717475509011,0.06123554,3775.4,3775.3,0.92046569]
[1717475509224,1.1116954,3775.9,3775.2,2.64885]
[1717475509445,0.06123554,3775.4,3775.2,2.64885]
[1717475509745,0.06123554,3775.3,3775.2,2.64885]
[1717475510049,1.1116954,3775.9,3775.2,3.56922237]
[1717475510236,1.1116954,3776.0,3775.2,2.64885]
[1717475510440,0.06123554,3775.8,3775.2,2.64885]
[1717475510668,1.1116954,3776.0,3775.3,0.92035582]
[1717475510810,0.06123554,3775.7,3775.3,0.92035582]
[1717475511009,1.1116954,3776.0,3775.3,0.92035582]
[1717475511266,0.06123554,3775.6,3775.2,2.64885]
[1717475511495,1.1116954,3776.0,3775.3,0.92034905]
[1717475511634,0.06123554,3775.5,3775.3,0.92034905]
[1717475511933,1.1116954,3776.0,3775.3,0.92034905]
[1717475512134,0.06123554,3775.9,3775.3,0.92034905]
[1717475512438,4.2293954,3776.1,3775.3,0.92034905]
[1717475512638,0.06123554,3775.8,3775.3,0.92034905]
[1717475512838,4.2293954,3776.1,3775.3,0.92034905]
[1717475513045,0.06123554,3775.7,3775.3,0.92034905]
[1717475513256,0.82670969,3776.0,3775.2,2.64885]
[1717475513580,4.2293954,3776.1,3775.2,2.64885]
[1717475513781,0.06123554,3776.0,3775.3,0.92032817]
[1717475514738,1.17293094,3776.0,3775.2,2.64885]
[1717475515774,0.06123554,3776.0,3775.5,2.6486]
[1717475518579,1.9116954,3776.3,3775.5,5.1307]
[1717475519013,0.06132154,3776.2,3775.5,5.1307]
[1717475520422,0.06132154,3776.2,3776.1,2.64823]
[1717475520575,0.06132154,3776.2,3776.1,6.29884925]
[1717475520774,2.5,3776.5,3776.1,6.29884925]
[1717475521085,2.5,3776.5,3776.4,0.8]
[1717475522198,2.5,3776.5,3776.3,2.64809]
[1717475523596,2.5,3776.5,3775.9,2.64835]
[1717475523797,0.25,3776.4,3775.9,2.64835]
[1717475525011,3.3,3776.5,3775.9,2.64835]
[1717475525183,2.5,3776.5,3775.9,2.64835]
[1717475530615,5.0,3776.5,3775.9,2.64835]
[1717475531282,0.05950299,3776.4,3775.9,2.64835]
[1717475532641,2.471,3776.3,3775.9,2.64835]
[1717475532982,0.05950299,3776.2,3775.5,2.64859]
[1717475534402,2.70768299,3776.2,3775.5,2.64859]
[1717475542771,2.70768299,3776.2,3775.5,3.44859]
[1717475546609,0.05950299,3776.2,3775.8,2.64843]
[1717475546749,2.5,3776.5,3775.9,1.064843]
[1717475546951,0.0595276,3776.4,3776.1,0.8]
[1717475550527,0.0595276,3776.4,3776.1,5.85891]
[1717475551567,0.0595276,3776.4,3776.1,5.05891]
[1717475551898,0.0595276,3776.4,3776.1,6.3912853]
[1717475554222,0.0595276,3776.4,3776.1,3.1805853]
[1717475554502,0.0595276,3776.4,3776.1,2.64821]
[1717475558414,2.4678276,3776.4,3775.7,4.93834]
[1717475558622,2.4678276,3776.4,3775.8,0.8]
[1717475559530,0.0595276,3776.4,3775.8,0.8]
[1717475559704,0.0595276,3776.4,3775.8,1.372334]
[1717475560028,0.0595276,3776.4,3775.9,2.4352]
[1717475562889,0.0595276,3776.4,3776.0,2.64827]
[1717475570799,0.0595276,3776.4,3776.0,3.44827]
[1717475571998,0.0595276,3776.4,3776.0,2.64827]
[1717475572417,0.0595276,3776.4,3776.3,2.64809]
[1717475573557,0.0595276,3776.4,3776.3,3.44809]
[1717475573905,2.5,3776.5,3776.3,3.44809]
[1717475574135,0.05966283,3776.4,3776.3,3.44809]
[1717475574553,0.05966283,3776.4,3776.3,3.99809]
[1717475574707,0.05966283,3776.4,3776.3,4.6834357]
[1717475575107,2.5,3776.5,3776.3,4.6834357]
[1717475582669,2.5,3776.5,3776.4,0.05295711]
[1717475582831,2.5,3776.5,3776.4,0.55]
[1717475583234,2.5,3776.5,3776.4,1.46997129]
[1717475583438,2.5,3776.5,3776.4,4.23717003]
[1717475583629,2.5,3776.5,3776.4,2.85721786]
[1717475584885,2.5,3776.5,3776.4,3.65721786]
[1717475585267,2.5,3776.5,3776.4,2.73724657]
[1717475587784,2.5,3776.5,3776.4,3.65726965]
[1717475588372,2.5,3776.5,3776.4,3.65724657]
[1717475588728,2.5,3776.5,3776.4,2.73724657]
[1717475590049,2.5,3776.5,3776.4,3.65725521]
[1717475590253,2.5,3776.5,3776.4,2.73724657]
[1717475590687,2.5,3776.5,3776.4,3.65724573]
[1717475591244,2.5,3776.5,3776.4,2.73724657]
[1717475591683,2.3571,3777.3,3776.6,2.64783]
[1717475591875,2.3571,3777.3,3776.8,2.64772]
[1717475593177,2.3571,3777.3,3777.0,2.64758]
[1717475593699,2.5,3777.5,3777.0,2.64758]
[1717475594887,2.5,3777.5,3777.1,0.8]
[1717475595302,2.5,3777.5,3777.2,2.64744]
[1717475606215,0.06002343,3777.4,3777.2,2.64744]
[1717475606619,2.3064,3777.3,3776.8,2.64769]
[1717475606992,0.06002343,3777.2,3776.8,2.64769]
[1717475611298,0.06002343,3777.2,3776.8,3.44769]
[1717475611499,2.5,3777.5,3776.8,3.44769]
[1717475611749,0.05990463,3777.1,3776.8,3.44769]
[1717475612024,0.05990463,3777.0,3776.9,0.585439]
[1717475612200,2.5,3777.5,3776.9,0.585439]
[1717475612401,0.05990463,3777.4,3776.8,3.44769]
[1717475614602,0.05990463,3777.4,3777.0,0.8]
[1717475616394,0.05990463,3777.4,3776.8,2.64769]
[1717475616609,0.05990463,3777.4,3777.0,0.8]
[1717475616897,0.05990463,3777.4,3777.0,3.44753]
[1717475617333,0.05990463,3777.4,3777.3,2.64739]
[1717475627261,0.05990463,3777.4,3777.3,2.56890027]
[1717475644234,0.05990463,3777.4,3777.3,3.36890027]
[1717475646368,0.05990463,3777.4,3777.3,4.83873208]
[1717475646845,2.5,3778.2,3777.9,2.64695]
[1717475647252,0.06081829,3778.1,3777.9,2.64695]
[1717475666593,2.4893,3778.0,3777.5,2.64721]
[1717475667149,0.06117459,3777.9,3777.5,2.64721]
[1717475672147,0.56622205,3777.9,3777.1,3.2022716]
[1717475672366,0.8,3777.7,3777.1,0.5547716]
[1717475672633,0.8,3777.5,3776.7,2.64774]
[1717475672956,0.06114592,3777.4,3776.7,3.44774]
[1717475673103,2.2665,3777.6,3776.7,3.44774]
[1717475673310,0.06114592,3777.3,3776.7,3.44774]
[1717475673936,0.06114592,3777.2,3776.7,3.44774]
[1717475674141,5.52079181,3777.6,3776.8,0.55]
[1717475674371,0.06114592,3777.1,3776.8,0.55]
[1717475674491,0.8,3777.5,3776.8,0.55]
[1717475674818,0.06114592,3777.0,3776.8,0.55]
[1717475675024,1.54324872,3777.5,3776.8,0.55]
[1717475675200,0.06114592,3776.9,3776.8,0.55]
[1717475675402,1.54324872,3777.5,3776.8,0.55]
[1717475675587,0.06114592,3776.9,3776.8,0.55]
[1717475676096,5.52079181,3777.6,3776.8,0.55]
[1717475676296,4.91369,3777.6,3776.8,0.55]
[1717475676487,0.06114592,3777.5,3776.9,0.8]
[1717475678287,0.06114592,3777.5,3777.3,0.8]
[1717475678488,2.4118,3777.9,3777.3,0.8]
[1717475678697,0.06085922,3777.8,3777.3,0.8]
[1717475679718,0.06085922,3777.8,3777.3,3.44736]
[1717475679917,0.06085922,3777.8,3777.4,0.344736]
[1717475680118,4.758,3778.2,3777.4,0.344736]
[1717475680313,0.06085922,3777.7,3777.3,3.44736]
[1717475680714,4.758,3778.2,3777.3,3.44736]
[1717475681013,0.06085922,3777.6,3777.3,3.44736]
[1717475681222,4.758,3778.2,3777.3,3.44736]
[1717475681719,0.06085922,3778.1,3777.3,3.44736]
[1717475683141,0.86085922,3778.1,3777.3,3.44736]
[1717475683468,0.48188592,3778.0,3777.3,3.44736]
[1717475683640,0.48188592,3778.0,3777.3,2.64736]
[1717475684162,0.06085922,3777.9,3777.3,2.64736]
[1717475685827,0.8,3778.1,3777.3,2.64736]
[1717475686058,0.06085922,3777.8,3777.3,2.64736]
[1717475686360,0.06085922,3777.7,3777.3,2.64736]
[1717475686776,0.8,3778.1,3777.3,2.64736]
[1717475686920,0.06085922,3777.6,3777.3,2.64736]
[1717475687128,0.8,3778.1,3777.3,2.64736]
[1717475687327,0.06085922,3777.5,3777.3,2.64736]
[1717475687940,0.06085922,3777.4,3777.3,2.64736]
[1717475688152,0.8,3778.1,3777.3,2.64736]
[1717475688458,0.06085922,3777.4,3777.3,2.64736]
[1717475688663,5.558,3778.2,3777.3,2.64736]
[1717475688961,0.93163554,3778.1,3777.3,2.64736]
[1717475689261,0.99249476,3778.1,3777.3,2.64736]
[1717475689732,3.63935476,3778.1,3777.3,2.64736]
[1717475689932,2.3161,3777.9,3777.3,2.64736]
[1717475690550,0.06085922,3777.8,3777.3,2.64736]
[1717475704202,8.36819554,3778.1,3777.3,2.64736]
[1717475704501,1.02798909,3778.0,3777.3,2.64736]
[1717475704815,0.06103535,3777.9,3777.3,2.64736]
[1717475714235,3.50806535,3777.9,3777.2,2.2971]
[1717475714443,3.50806535,3777.9,3777.0,1.37980755]
[1717475714646,4.61976075,3777.9,3776.9,5.06931]
[1717475714883,2.15544038,3777.8,3776.9,5.06931]
[1717475715043,2.3684,3777.7,3776.9,5.06931]
[1717475715233,3.22944355,3777.7,3776.9,5.06931]
[1717475715628,2.64724,3777.6,3776.9,5.06931]
[1717475715823,0.80321239,3777.5,3776.9,5.06931]
[1717475716229,0.06104355,3777.4,3776.9,5.06931]
[1717475716836,0.06104355,3777.4,3776.7,3.2432]
[1717475718872,2.64724,3777.6,3776.7,3.2432]
[1717475719074,0.06104355,3777.3,3776.7,3.2432]
[1717475719277,3.7589354,3777.6,3776.7,3.832308]
[1717475719578,3.7589354,3777.6,3776.7,3.2432]
[1717475719901,0.06104355,3777.5,3776.7,3.2432]
[1717475720767,0.06104355,3777.5,3776.7,2.4432]
[1717475721575,2.3697,3777.3,3776.5,2.64788]
[1717475721805,2.3697,3777.3,3776.5,3.44788]
[1717475721994,3.0686779,3777.3,3776.5,2.64788]
[1717475722162,0.06104355,3777.2,3776.5,2.64788]
[1717475722906,0.06104355,3777.2,3776.5,3.44788]
[1717475723492,2.64734,3777.4,3776.5,3.44788]
[1717475723694,0.06104355,3777.1,3776.7,0.8]
[1717475724008,0.06104355,3777.0,3776.7,0.8]
[1717475724506,0.06104355,3776.9,3776.7,0.8]
[1717475724714,2.64734,3777.4,3776.5,3.44788]
[1717475725179,0.06104355,3777.3,3776.5,3.44788]
[1717475725789,2.4705,3777.2,3776.5,3.44788]
[1717475726379,0.06104355,3777.1,3776.5,3.44788]
[1717475726579,0.06104355,3777.1,3776.5,4.320198]
[1717475731504,2.64734,3777.4,3776.5,4.320198]
[1717475731706,0.06057254,3777.3,3776.5,3.44788]
[1717475737027,0.06057254,3777.3,3776.5,2.64788]
[1717475737225,0.06057254,3777.3,3776.5,3.44788]
[1717475747602,0.06057254,3777.3,3776.6,2.3205]
[1717475749842,0.06057254,3777.3,3776.7,2.64779]
[1717475752232,0.06057254,3777.3,3776.7,3.44779]
[1717475752826,0.06057254,3777.3,3776.7,2.64779]
[1717475753182,0.06057254,3777.3,3776.9,2.64763]
[1717475753612,2.5,3777.6,3776.9,2.64763]
[1717475753814,0.06054387,3777.2,3776.9,2.64763]
[1717475754112,0.06054387,3777.1,3776.9,2.64763]
[1717475754419,2.5,3777.6,3776.9,2.64763]
[1717475754639,0.06054387,3777.0,3776.9,2.64763]
[1717475754813,2.5,3777.6,3776.9,2.64763]
[1717475755011,0.06054387,3777.0,3776.9,2.64763]
[1717475755241,2.5,3777.6,3776.9,2.64763]
[1717475755438,0.06055614,3777.0,3776.9,2.64763]
[1717475755650,2.5,3777.6,3776.9,3.237203]
[1717475755864,0.06055614,3777.0,3776.9,2.64763]
[1717475756006,2.5,3777.6,3776.9,2.64763]
[1717475756210,0.06055614,3777.0,3776.9,2.64763]
[1717475756735,2.5,3777.6,3776.9,2.64763]
[1717475756938,0.06055614,3777.0,3776.9,2.64763]
[1717475757194,2.5,3777.6,3776.9,3.237203]
[1717475757374,0.06055614,3777.0,3776.9,2.64763]
[1717475757686,2.5,3777.6,3776.9,2.64763]
[1717475757884,0.06055614,3777.0,3776.9,2.64763]
[1717475758389,3.6116954,3777.6,3776.9,2.64763]
[1717475758570,0.06055614,3777.0,3776.9,2.64763]
[1717475758891,3.6116954,3777.6,3776.9,3.237203]
[1717475759086,0.06055614,3777.0,3776.9,2.64763]
[1717475759271,5.9122954,3777.6,3776.9,2.64763]
[1717475759883,1.17225154,3777.5,3776.9,2.64763]
[1717475765993,1.17225154,3777.5,3777.0,2.319]
[1717475767093,1.17225154,3777.5,3777.0,2.95366163]
[1717475767301,0.06055614,3777.5,3777.0,2.95366163]
[1717475767898,0.06055614,3777.5,3777.0,3.75366163]
[1717475768299,0.06055614,3777.5,3777.0,2.95366163]
[1717475768700,0.06055614,3777.5,3777.1,2.3597]
[1717475771220,0.06055614,3777.5,3777.0,0.63466163]
[1717475771221,0.8,3777.4,3776.9,2.64763]
[1717475771538,0.0606094,3777.3,3776.9,2.64763]
[1717475775354,0.0606094,3777.3,3776.5,3.2026516]
[1717475775553,0.0606094,3777.3,3776.6,3.21310774]
[1717475775728,0.0606094,3777.3,3776.6,3.67311162]
[1717475775929,1.1723048,3777.3,3776.6,2.2931]
[1717475780346,2.3331,3777.1,3776.5,2.64788]
[1717475780555,0.06051518,3777.0,3776.4,1.3800922]
[1717475780869,0.06051518,3777.0,3776.3,2.324]
[1717475781072,0.06051518,3777.0,3776.4,0.9200793]
[1717475784030,0.06051518,3777.0,3776.5,2.2605]
[1717475784237,1.3895619,3777.4,3777.0,2.3014]
[1717475784238,1.1116954,3777.4,3777.0,2.3014]
[1717475784438,1.1116954,3777.4,3777.1,0.8]
[1717475784748,2.64725,3777.5,3777.1,0.8]
[1717475785285,2.64725,3777.5,3777.0,2.3014]
[1717475786607,0.06040456,3777.4,3777.0,2.3014]
[1717475787314,0.06040456,3777.4,3777.0,5.66187138]
[1717475787604,2.5,3777.6,3777.2,0.8]
[1717475787817,0.06040456,3777.3,3777.2,0.8]
[1717475788008,2.5,3777.6,3777.2,0.8]
[1717475788211,0.06040456,3777.3,3777.2,0.8]
[1717475788417,2.5,3777.6,3777.2,0.8]
[1717475788568,0.06040456,3777.3,3777.2,0.8]
[1717475788911,2.5,3777.6,3777.2,0.8]
[1717475789110,0.06053973,3777.3,3777.2,0.8]
[1717475789283,2.5,3777.6,3777.2,0.64618714]
[1717475789479,2.5,3777.6,3777.2,1.44618714]
[1717475789682,0.06053973,3777.5,3777.2,1.44618714]
[1717475790275,0.06053973,3777.5,3777.3,2.64739]
[1717475794420,0.06053973,3777.5,3777.4,3.0794]
[1717475794573,2.5,3777.6,3777.4,3.0794]
[1717475794574,2.5,3777.6,3777.4,3.71669771]
[1717475795410,2.5,3777.6,3777.5,2.64725]
[1717475801798,2.56110499,3777.6,3777.5,2.64725]
[1717475805211,2.56110499,3777.6,3777.1,2.4551]
[1717475805406,2.56110499,3777.6,3777.0,2.64754]
[1717475805407,2.56110499,3777.6,3777.4,3.1414]
[1717475805643,2.5,3777.6,3777.5,0.31414]
[1717475805848,2.5,3777.6,3777.5,1.23387681]
[1717475806170,2.5,3777.6,3777.5,2.96139]
[1717475809882,2.5,3777.6,3777.5,2.64725]
[1717475813143,0.8,3778.1,3777.5,2.64725]
[1717475813546,5.14677,3778.2,3777.5,2.64725]
[1717475816288,0.05878808,3778.1,3777.5,2.64725]
[1717475816453,0.05878808,3778.1,3778.0,0.8]
[1717475817275,0.05878808,3778.1,3777.8,3.44702]
[1717475819295,0.05878808,3778.1,3777.8,2.64702]
[1717475819644,0.05878808,3778.1,3777.4,2.64725]
[1717475819848,0.05878808,3778.1,3777.4,3.44725]
[1717475820101,0.62848689,3778.1,3777.4,2.64725]
[1717475820300,2.3547,3778.0,3777.4,2.64725]
[1717475820466,2.41354138,3778.0,3777.4,2.64725]
[1717475825376,0.05884138,3778.0,3777.9,0.8]
[1717475825772,2.5,3778.2,3777.9,0.8]
[1717475826005,0.05890699,3778.0,3777.9,2.4564]
[1717475826155,2.5,3778.2,3778.0,2.6469]
[1717475826362,2.5,3778.2,3778.1,0.8]
[1717475826783,2.5,3778.2,3778.0,2.6469]
[1717475827461,0.0591653,3778.1,3778.0,2.6469]
[1717475827662,2.5,3778.2,3778.0,2.6469]
[1717475827862,0.0594359,3778.1,3778.0,2.6469]
[1717475828280,0.0594359,3778.1,3777.6,2.64712]
[1717475830930,0.63154949,3778.1,3777.3,1.37965389]
[1717475831282,0.63154949,3778.1,3777.2,2.6474]
[1717475831409,0.0594359,3778.1,3777.2,2.6474]
[1717475837027,0.8594359,3778.1,3777.2,2.6474]
[1717475837209,1.9711313,3778.1,3777.2,2.6474]
[1717475839155,2.4414,3777.9,3777.2,2.6474]
[1717475839657,3.44711,3777.7,3776.9,1.37976691]
[1717475839855,3.44711,3777.7,3776.8,2.64768]
[1717475840083,3.44711,3777.7,3776.9,0.91993115]
[1717475840207,0.05884959,3777.6,3776.8,2.64768]
[1717475840407,0.05884959,3777.6,3776.8,3.1859134]
[1717475842010,0.05884959,3777.6,3776.9,0.8]
[1717475843661,0.05884959,3777.6,3777.0,2.6476]
[1717475843822,0.05884959,3777.6,3777.1,3.0821]
[1717475844157,0.05879217,3777.5,3777.1,3.0821]
[1717475844323,2.4414,3777.9,3777.1,3.0821]
[1717475844523,0.05879627,3777.4,3777.1,3.0821]
[1717475844737,2.4414,3777.9,3777.2,2.95563]
[1717475845047,0.05879627,3777.3,3777.2,2.95563]
[1717475845238,2.4414,3777.9,3777.2,2.95563]
[1717475845637,0.05879627,3777.8,3777.2,2.95563]
[1717475847262,0.05879627,3777.8,3777.2,2.64742]
[1717475847696,0.05879627,3777.8,3776.8,0.8]
[1717475847697,0.8,3777.7,3776.8,2.6477]
[1717475848186,0.05879627,3777.6,3776.8,2.6477]
[1717475849287,3.153,3777.5,3776.8,2.6477]
[1717475849489,0.8,3777.3,3776.8,2.6477]
[1717475850274,0.05879627,3777.2,3776.8,2.6477]
[1717475854770,2.353,3777.5,3776.8,2.6477]
[1717475854968,0.05863631,3777.1,3776.8,2.6477]
[1717475855262,2.353,3777.5,3776.9,0.34477]